bitfinex/quotes_BTCUSD_20241027
["timestamp","ask_amount","ask_price","bid_price","bid_amount"]
[1730020340580,0.09167807,67145.0,67144.0,0.23698203]
[1730020343812,0.09167653,67145.0,67144.0,0.23698203]
[1730020348958,0.06266264,67145.0,67144.0,0.23698203]
[1730020349812,0.06266264,67145.0,67144.0,0.149755]
[1730020351519,0.01970121,67145.0,67144.0,0.000822]
[1730020351737,0.29504195,67145.0,67144.0,0.000822]
[1730020351950,0.30898894,67145.0,67144.0,0.000822]
[1730020352191,0.16005794,67145.0,67144.0,0.000822]
[1730020353458,0.32471368,67145.0,67144.0,0.000822]
[1730020353689,0.41392398,67145.0,67144.0,0.000822]
[1730020354131,0.72401098,67145.0,67144.0,0.000822]
[1730020354344,0.79485879,67145.0,67144.0,0.000822]
[1730020354778,0.225434,67144.0,67136.0,0.149792]
[1730020354993,0.01486402,67138.0,67137.0,0.22240179]
[1730020355197,0.12619906,67138.0,67137.0,0.37135079]
[1730020355405,0.18061819,67138.0,67136.0,0.149792]
[1730020355617,0.05037502,67137.0,67136.0,0.149792]
[1730020356245,0.06835417,67137.0,67136.0,0.149792]
[1730020357083,0.06089907,67137.0,67136.0,0.149792]
[1730020358146,0.04291992,67137.0,67136.0,0.149792]
[1730020358353,0.02898488,67137.0,67136.0,0.149792]
[1730020358600,0.0974,67138.0,67137.0,0.148949]
[1730020358822,0.11132048,67138.0,67137.0,0.148949]
[1730020359029,0.15825425,67138.0,67137.0,0.148949]
[1730020361314,0.23475425,67138.0,67137.0,0.148949]
[1730020362158,0.19187915,67138.0,67137.0,0.148949]
[1730020362364,0.23474024,67138.0,67137.0,0.148949]
[1730020362580,0.2208243,67138.0,67137.0,0.148949]
[1730020362791,0.23473742,67138.0,67137.0,0.148949]
[1730020364341,0.23473742,67138.0,67136.0,0.000842]
[1730020364570,0.04285827,67137.0,67136.0,0.000842]
[1730020365026,0.06083742,67137.0,67136.0,0.000842]
[1730020368210,0.08309793,67137.0,67136.0,0.000842]
[1730020368433,0.01797915,67137.0,67136.0,0.000842]
[1730020370160,0.08309598,67137.0,67136.0,0.000842]
[1730020370394,0.23204498,67137.0,67136.0,0.000842]
[1730020371241,0.08309598,67137.0,67136.0,0.000842]
[1730020371482,0.06918496,67137.0,67136.0,0.000842]
[1730020371714,0.21813396,67137.0,67136.0,0.000842]
[1730020371935,0.08310058,67137.0,67136.0,0.000842]
[1730020372144,0.17228656,67137.0,67136.0,0.000842]
[1730020372357,0.08310395,67137.0,67136.0,0.000842]
[1730020372576,0.23205295,67137.0,67136.0,0.000842]
[1730020372813,0.23705295,67137.0,67136.0,0.000842]
[1730020373046,0.28905184,67137.0,67136.0,0.000842]
[1730020373263,0.43955565,67137.0,67136.0,0.000842]
[1730020373482,0.53655565,67137.0,67136.0,0.000842]
[1730020374608,0.53651023,67137.0,67136.0,0.000842]
[1730020375485,0.49201194,67137.0,67136.0,0.000842]
[1730020375719,0.49201671,67137.0,67136.0,0.000842]
[1730020375939,0.5722188,67137.0,67136.0,0.000842]
[1730020376161,0.58614047,67137.0,67136.0,0.000842]
[1730020376378,0.60840832,67137.0,67136.0,0.000842]
[1730020376603,0.49202101,67137.0,67136.0,0.000842]
[1730020379270,0.49204104,67137.0,67136.0,0.000842]
[1730020379518,0.49205706,67137.0,67136.0,0.000842]
[1730020380632,0.005,67136.0,67133.0,0.148956]
[1730020380877,0.0148571,67134.0,67133.0,0.148956]
[1730020381100,0.0874822,67134.0,67132.0,0.148959]
[1730020381318,0.0726251,67133.0,67132.0,0.148959]
[1730020381527,0.0874822,67133.0,67132.0,0.148959]
[1730020381748,0.05416048,67133.0,67132.0,0.148959]
[1730020381963,0.10545939,67133.0,67132.0,0.148959]
[1730020384354,0.09059725,67133.0,67132.0,0.148959]
[1730020386741,0.09059725,67133.0,67130.0,0.148962]
[1730020386945,0.09059725,67133.0,67129.0,0.297933]
[1730020386946,0.08753101,67132.0,67129.0,0.297933]
[1730020387178,0.01486778,67132.0,67131.0,0.148962]
[1730020387407,0.08755622,67132.0,67131.0,0.148962]
[1730020389151,0.34894869,67136.0,67131.0,0.148962]
[1730020389358,0.04386104,67132.0,67131.0,0.148962]
[1730020389597,0.08755776,67132.0,67131.0,0.148962]
[1730020393104,0.08755776,67132.0,67130.0,0.000822]
[1730020393347,0.07268961,67131.0,67130.0,0.149785]
[1730020394640,0.07268961,67131.0,67130.0,0.149786]
[1730020395566,0.11718349,67131.0,67130.0,0.149786]
[1730020396452,0.07268961,67131.0,67130.0,0.149786]
[1730020396656,0.0727143,67131.0,67130.0,0.149786]
[1730020396921,0.13945512,67131.0,67130.0,0.149786]
[1730020397453,0.15432891,67131.0,67130.0,0.149786]
[1730020398735,0.17232128,67131.0,67130.0,0.149786]
[1730020399391,0.17249135,67131.0,67130.0,0.149786]
[1730020400012,0.10558046,67131.0,67130.0,0.149786]
[1730020400212,0.09070667,67131.0,67130.0,0.149786]
[1730020401931,0.09070667,67131.0,67130.0,0.000822]
[1730020402193,0.09070667,67131.0,67130.0,0.149786]
[1730020402633,0.09070667,67131.0,67130.0,0.000822]
[1730020403752,0.09071745,67131.0,67130.0,0.000822]
[1730020405250,0.09071745,67131.0,67130.0,0.149786]
[1730020407225,0.09071745,67131.0,67130.0,0.149786]
[1730020407438,0.01799237,67131.0,67130.0,0.149786]
[1730020407657,0.25540911,67131.0,67130.0,0.149786]
[1730020407866,0.21893921,67131.0,67130.0,0.149786]
[1730020408072,0.23309045,67131.0,67130.0,0.149786]
[1730020408522,0.25540897,67131.0,67130.0,0.149786]
[1730020408939,0.25540897,67131.0,67130.0,0.000822]
[1730020409574,0.3446257,67131.0,67130.0,0.000822]
[1730020410496,0.30835811,67131.0,67130.0,0.149786]
[1730020410702,0.34466053,67131.0,67130.0,0.149786]
[1730020411407,0.34466048,67131.0,67130.0,0.149786]
[1730020412267,0.34466048,67131.0,67130.0,0.000822]
[1730020413587,0.2554271,67131.0,67130.0,0.000822]
[1730020414013,0.2554271,67131.0,67130.0,0.149786]
[1730020414216,0.2554271,67131.0,67130.0,0.000822]
[1730020415546,0.2554271,67131.0,67130.0,0.149786]
[1730020416196,0.2554271,67131.0,67130.0,0.000822]
[1730020416654,0.36696882,67131.0,67130.0,0.000822]
[1730020416889,0.36696882,67131.0,67130.0,0.149786]
[1730020417522,0.36696882,67131.0,67130.0,0.000822]
[1730020418828,0.29423241,67131.0,67130.0,0.000822]
[1730020419037,0.33049823,67131.0,67130.0,0.000822]
[1730020419239,0.36696666,67131.0,67130.0,0.000822]
[1730020421008,0.09072662,67131.0,67130.0,0.000822]
[1730020422411,0.09072718,67131.0,67130.0,0.000822]
[1730020423470,0.23968918,67131.0,67130.0,0.000822]
[1730020423679,0.09072718,67131.0,67130.0,0.000822]
[1730020423893,0.23968918,67131.0,67130.0,0.000822]
[1730020424546,0.09072718,67131.0,67130.0,0.000822]
[1730020424967,0.23968918,67131.0,67130.0,0.000822]
[1730020425673,0.23968918,67131.0,67125.0,0.09831323]
[1730020425674,0.63525699,67131.0,67125.0,0.09831323]
[1730020425908,0.14897,67128.0,67125.0,0.09831323]
[1730020426333,0.07674419,67127.0,67125.0,0.09831323]
[1730020426549,0.05878623,67126.0,67125.0,0.09831323]
[1730020426754,0.07273462,67126.0,67125.0,0.09831323]
[1730020426969,0.09068755,67126.0,67125.0,0.09831323]
[1730020428522,0.1055591,67126.0,67125.0,0.09831323]
[1730020428951,0.1055591,67126.0,67125.0,0.09913523]
[1730020430444,0.1055591,67126.0,67125.0,0.24811023]
[1730020430900,0.2702226,67126.0,67125.0,0.24811023]
[1730020431553,0.1055591,67126.0,67125.0,0.09913523]
[1730020431789,0.09440041,67126.0,67125.0,0.09913523]
[1730020432000,0.16130843,67126.0,67125.0,0.09913523]
[1730020432636,0.14643688,67126.0,67125.0,0.09913523]
[1730020433303,0.12110292,67126.0,67125.0,0.09913523]
[1730020433567,0.17242119,67126.0,67125.0,0.09913523]
[1730020434404,0.15755269,67126.0,67125.0,0.09913523]
[1730020434894,0.08486095,67126.0,67125.0,0.09913523]
[1730020435100,0.15754965,67126.0,67125.0,0.09913523]
[1730020435528,0.359363,67126.0,67125.0,0.09913523]
[1730020435752,0.34449519,67126.0,67125.0,0.09913523]
[1730020437097,0.49346819,67126.0,67125.0,0.09913523]
[1730020437332,0.40425368,67126.0,67125.0,0.09913523]
[1730020437773,0.36679881,67126.0,67125.0,0.09913523]
[1730020438440,0.29411011,67126.0,67125.0,0.09913523]
[1730020438666,0.36679264,67126.0,67125.0,0.09913523]
[1730020440220,0.36671722,67126.0,67125.0,0.09913523]
[1730020440456,0.25523941,67126.0,67125.0,0.09913523]
[1730020441650,0.38560308,67126.0,67125.0,0.09913523]
[1730020441869,0.25523455,67126.0,67125.0,0.09913523]
[1730020442967,0.40420755,67126.0,67125.0,0.09913523]
[1730020443243,0.51568536,67126.0,67125.0,0.09913523]
[1730020443458,0.51568536,67126.0,67125.0,0.06558007]
[1730020443674,0.5156371,67126.0,67125.0,0.06558007]
[1730020444544,0.47270713,67126.0,67125.0,0.06558007]
[1730020444767,0.51561708,67126.0,67125.0,0.06558007]
[1730020447251,0.36664408,67126.0,67125.0,0.06558007]
[1730020448126,0.29398643,67126.0,67125.0,0.06558007]
[1730020448360,0.36659324,67126.0,67125.0,0.06558007]
[1730020450545,0.25515395,67126.0,67125.0,0.06558007]
[1730020451892,0.21872644,67126.0,67125.0,0.06558007]
[1730020452123,0.25516421,67126.0,67125.0,0.06558007]
[1730020452329,0.25516428,67126.0,67125.0,0.06558007]
[1730020454509,0.36660357,67126.0,67125.0,0.06558007]
[1730020455707,0.36663636,67126.0,67125.0,0.06558007]
[1730020456151,0.25519707,67126.0,67125.0,0.06558007]
[1730020456789,0.36663636,67126.0,67125.0,0.06558007]
[1730020458538,0.36663636,67126.0,67125.0,0.03202442]
[1730020459005,0.36663636,67126.0,67125.0,0.11925145]
[1730020459006,0.25519707,67126.0,67125.0,0.11925145]
[1730020459464,0.23289514,67126.0,67125.0,0.11925145]
[1730020460587,0.34433443,67126.0,67125.0,0.11925145]
[1730020461743,0.34433443,67126.0,67125.0,0.03202442]
[1730020462444,0.34439671,67126.0,67125.0,0.03202442]
[1730020463154,0.30794555,67126.0,67125.0,0.03202442]
[1730020463400,0.33046177,67126.0,67125.0,0.03202442]
[1730020463636,0.34440617,67126.0,67125.0,0.03202442]
[1730020464565,0.23294173,67126.0,67125.0,0.03202442]
[1730020468390,0.32214001,67126.0,67125.0,0.03202442]
[1730020468608,0.23294173,67126.0,67125.0,0.03202442]
[1730020470433,0.19648125,67126.0,67125.0,0.03202442]
[1730020470665,0.23294896,67126.0,67125.0,0.03202442]
[1730020470895,0.34444681,67126.0,67125.0,0.03202442]
[1730020473972,0.31913642,67126.0,67125.0,0.03202442]
[1730020474179,0.3444446,67126.0,67125.0,0.03202442]
[1730020474394,0.33050049,67126.0,67125.0,0.03202442]
[1730020474640,0.34444711,67126.0,67125.0,0.03202442]
[1730020476000,0.34444669,67126.0,67125.0,0.03202442]
[1730020476682,0.34609069,67126.0,67125.0,0.03202442]
[1730020477802,0.29567899,67126.0,67125.0,0.03202442]
[1730020478035,0.34608898,67126.0,67125.0,0.03202442]
[1730020478287,0.23459113,67126.0,67125.0,0.03202442]
[1730020481451,0.23473905,67126.0,67125.0,0.03202442]
[1730020483237,0.23473905,67126.0,67125.0,0.18099942]
[1730020483442,0.23474368,67126.0,67125.0,0.18099942]
[1730020484293,0.23474368,67126.0,67125.0,0.26822645]
[1730020484513,0.23474368,67126.0,67125.0,0.44442645]
[1730020484952,0.22079776,67126.0,67125.0,0.44442645]
[1730020485174,0.24962072,67126.0,67125.0,0.44442645]
[1730020485473,0.11463607,67126.0,67125.0,0.44442645]
[1730020485684,0.07000786,67126.0,67125.0,0.44442645]
[1730020485896,0.06255172,67126.0,67125.0,0.44442645]
[1730020487838,0.04459879,67126.0,67125.0,0.44442645]
[1730020488497,0.01280105,67126.0,67125.0,0.44442645]
[1730020488718,0.030632,67126.0,67125.0,0.44442645]
[1730020488946,0.04456853,67126.0,67125.0,0.44442645]
[1730020491148,0.06284445,67126.0,67125.0,0.44442645]
[1730020492269,0.06284445,67126.0,67125.0,0.36262645]
[1730020493585,0.0628384,67126.0,67125.0,0.36262645]
[1730020493799,0.06282579,67126.0,67125.0,0.36262645]
[1730020494251,0.06282579,67126.0,67125.0,0.03202442]
[1730020494468,0.11490946,67126.0,67125.0,0.03202442]
[1730020494701,0.07028125,67126.0,67125.0,0.03202442]
[1730020494930,0.11485795,67126.0,67125.0,0.03202442]
[1730020495145,0.10740249,67126.0,67125.0,0.03202442]
[1730020495359,0.11485795,67126.0,67125.0,0.03202442]
[1730020495574,0.10740249,67126.0,67125.0,0.03202442]
[1730020495810,0.11485795,67126.0,67125.0,0.03202442]
[1730020496042,0.10740249,67126.0,67125.0,0.03202442]
[1730020496259,0.11485795,67126.0,67125.0,0.03202442]
[1730020496478,0.11485956,67126.0,67125.0,0.03202442]
[1730020496699,0.1074034,67126.0,67125.0,0.03202442]
[1730020496950,0.11485956,67126.0,67125.0,0.03202442]
[1730020497164,0.1074034,67126.0,67125.0,0.03202442]
[1730020497375,0.11485956,67126.0,67125.0,0.03202442]
[1730020499738,0.11486098,67126.0,67125.0,0.03202442]
[1730020499949,0.11486358,67126.0,67125.0,0.03202442]
[1730020502139,0.10372029,67126.0,67125.0,0.03202442]
[1730020502368,0.11486592,67126.0,67125.0,0.03202442]
[1730020503207,0.07028662,67126.0,67125.0,0.03202442]
[1730020503416,0.1148683,67126.0,67125.0,0.03202442]
[1730020504254,0.07028662,67126.0,67125.0,0.03202442]
[1730020505330,0.07028662,67126.0,67125.0,0.18099942]
[1730020505748,0.01991992,67126.0,67125.0,0.18099942]
[1730020505956,0.07029654,67126.0,67125.0,0.18099942]
[1730020506183,0.05169222,67126.0,67125.0,0.18099942]
[1730020506388,0.07029656,67126.0,67125.0,0.18099942]
[1730020508935,0.07029656,67126.0,67125.0,0.25689942]
[1730020509142,0.0628404,67126.0,67125.0,0.25689942]
[1730020511221,0.0628404,67126.0,67125.0,0.35409942]
[1730020517008,0.03385706,67126.0,67125.0,0.35409942]
[1730020517208,0.06284631,67126.0,67125.0,0.35409942]
[1730020518362,0.07030206,67126.0,67125.0,0.35409942]
[1730020518574,0.06284631,67126.0,67125.0,0.35409942]
[1730020519214,0.07030362,67126.0,67125.0,0.35409942]
[1730020519422,0.06284787,67126.0,67125.0,0.35409942]
[1730020519650,0.07030362,67126.0,67125.0,0.35409942]
[1730020519856,0.06284787,67126.0,67125.0,0.35409942]
[1730020520289,0.05636492,67126.0,67125.0,0.35409942]
[1730020520495,0.07031193,67126.0,67125.0,0.35409942]
[1730020520923,0.06285621,67126.0,67125.0,0.35409942]
[1730020521135,0.07031193,67126.0,67125.0,0.35409942]
[1730020521365,0.06285621,67126.0,67125.0,0.35409942]
[1730020521577,0.07031193,67126.0,67125.0,0.35409942]
[1730020521785,0.06285621,67126.0,67125.0,0.35409942]
[1730020522218,0.04458029,67126.0,67125.0,0.44132645]
[1730020523255,0.03064003,67126.0,67125.0,0.44132645]
[1730020523549,0.04457911,67126.0,67125.0,0.44132645]
[1730020523758,0.03064003,67126.0,67125.0,0.44132645]
[1730020524618,0.03064003,67126.0,67125.0,0.45320418]
[1730020525508,0.01279632,67126.0,67125.0,0.45320418]
[1730020525929,0.01279632,67126.0,67125.0,0.44132645]
[1730020526137,0.01279632,67126.0,67125.0,0.35409942]
[1730020526340,0.01279632,67126.0,67125.0,0.44132645]
[1730020527821,0.001644,67126.0,67125.0,0.44132645]
[1730020528311,0.01279082,67126.0,67125.0,0.44132645]
[1730020528526,0.02393765,67126.0,67125.0,0.44132645]
[1730020533962,0.01279083,67126.0,67125.0,0.44132645]
[1730020534870,0.01279083,67126.0,67125.0,0.52855348]
[1730020535630,0.001644,67126.0,67125.0,0.52855348]
[1730020538187,0.001644,67130.0,67129.0,0.148966]
[1730020538407,0.001644,67130.0,67129.0,0.50102006]
[1730020538627,0.001644,67130.0,67129.0,0.52977802]
[1730020539338,0.001644,67136.0,67135.0,0.148953]
[1730020539567,0.001644,67136.0,67135.0,0.50100706]
[1730020544015,0.01279109,67136.0,67135.0,0.50100706]
[1730020544883,0.01278796,67136.0,67135.0,0.50100706]
[1730020547165,0.01278796,67136.0,67135.0,0.41378003]
[1730020548096,0.01278796,67136.0,67135.0,0.50100706]
[1730020548767,0.01278256,67136.0,67135.0,0.50100706]
[1730020551509,0.01278256,67136.0,67135.0,0.41378003]
[1730020551950,0.01278256,67136.0,67135.0,0.50100706]
[1730020552365,0.01278256,67136.0,67135.0,0.41378003]
[1730020553168,0.01278353,67136.0,67135.0,0.41378003]
[1730020553823,0.01278339,67136.0,67135.0,0.41378003]
[1730020554098,0.01278353,67136.0,67135.0,0.41378003]
[1730020554556,0.01278353,67136.0,67135.0,0.50100706]
[1730020555014,0.0127835,67136.0,67135.0,0.50100706]
[1730020555239,0.0127835,67136.0,67135.0,0.41378003]
[1730020557033,0.01278393,67136.0,67135.0,0.41378003]
[1730020560901,0.01278646,67136.0,67135.0,0.41378003]
[1730020563992,0.001644,67136.0,67135.0,0.41378003]
[1730020564195,0.01279097,67136.0,67135.0,0.41378003]
[1730020567105,0.03064861,67136.0,67135.0,0.41378003]
[1730020572012,0.03064861,67136.0,67135.0,0.326553]
[1730020576371,0.01279097,67136.0,67135.0,0.326553]
[1730020576623,0.01280519,67136.0,67135.0,0.326553]
[1730020577644,0.01280519,67136.0,67135.0,0.48205681]
[1730020577910,0.01280519,67136.0,67135.0,0.75651087]
[1730020578168,0.001644,67136.0,67135.0,0.75651087]
[1730020578422,0.001644,67145.0,67144.0,0.230633]
[1730020578674,0.04460281,67145.0,67144.0,0.6815475]
[1730020578892,0.06122499,67145.0,67144.0,0.6815475]
[1730020579141,0.03065514,67145.0,67144.0,0.6815475]
[1730020579607,0.01280213,67145.0,67144.0,0.6815475]
[1730020580328,0.01279933,67145.0,67144.0,0.6815475]
[1730020581091,0.01279933,67145.0,67144.0,0.65279087]
[1730020582583,0.01279933,67145.0,67144.0,0.66450214]
[1730020582855,0.01279933,67145.0,67144.0,0.47833681]
[1730020583096,0.01279933,67145.0,67144.0,0.47389087]
[1730020584085,0.001644,67145.0,67144.0,0.47389087]
[1730020584327,0.01279257,67145.0,67144.0,0.47389087]
[1730020586914,0.01279257,67145.0,67144.0,0.29943681]
[1730020587167,0.01279257,67145.0,67144.0,0.47389087]
[1730020588080,0.001644,67145.0,67144.0,0.47389087]
[1730020588318,0.01278913,67145.0,67144.0,0.47389087]
[1730020588539,0.001644,67145.0,67144.0,0.47389087]
[1730020588775,0.01278862,67145.0,67144.0,0.47389087]
[1730020590505,0.01278862,67145.0,67144.0,0.23616003]
[1730020590929,0.01278862,67145.0,67144.0,0.32338706]
[1730020591131,0.04343117,67145.0,67144.0,0.32338706]
[1730020593645,0.01278862,67145.0,67144.0,0.32338706]
[1730020597002,0.01278862,67145.0,67144.0,0.41728706]
[1730020598486,0.01278862,67145.0,67144.0,0.56779087]
[1730020600134,0.01278956,67145.0,67144.0,0.56779087]
[1730020600556,0.001644,67145.0,67144.0,0.56779087]
[1730020600776,0.01279052,67145.0,67144.0,0.56779087]
[1730020606470,0.03064142,67145.0,67144.0,0.56779087]
[1730020606713,0.01279052,67145.0,67144.0,0.56779087]
[1730020607349,0.03064142,67145.0,67144.0,0.56779087]
[1730020609232,0.04459103,67145.0,67144.0,0.56779087]
[1730020611238,0.04459103,67145.0,67144.0,0.47389087]
[1730020611681,0.04459115,67145.0,67144.0,0.47389087]
[1730020612080,0.04460909,67145.0,67144.0,0.47389087]
[1730020614203,0.04460939,67145.0,67144.0,0.47389087]
[1730020619522,0.03065959,67145.0,67144.0,0.47389087]
[1730020619687,0.04460968,67145.0,67144.0,0.47389087]
[1730020620254,0.03065959,67145.0,67144.0,0.32338706]
[1730020622281,0.03065959,67145.0,67144.0,0.50238706]
[1730020622510,0.01280384,67145.0,67144.0,0.50238706]
[1730020622709,0.001644,67145.0,67144.0,0.7401179]
[1730020622916,0.01280432,67145.0,67144.0,0.65289087]
[1730020626216,0.01280283,67145.0,67144.0,0.65289087]
[1730020633912,0.0128015,67145.0,67144.0,0.65289087]
[1730020645532,0.01280305,67145.0,67144.0,0.65289087]
[1730020645743,0.001644,67145.0,67144.0,0.65289087]
[1730020645948,0.0128031,67145.0,67144.0,0.65289087]
[1730020651019,0.0010911,67147.0,67144.0,0.50395787]
[1730020651254,0.0010911,67147.0,67146.0,0.148929]
[1730020651486,0.01894885,67147.0,67146.0,0.29943281]
[1730020651699,0.01894885,67147.0,67146.0,0.32818944]
[1730020652198,0.0010911,67147.0,67146.0,0.32818944]
[1730020654439,0.0010911,67147.0,67146.0,0.42818944]
[1730020654665,0.0010911,67147.0,67146.0,0.47288807]
[1730020654867,0.0010911,67147.0,67146.0,0.42818944]
[1730020656075,0.0010911,67147.0,67146.0,0.51541647]
[1730020656288,0.0010911,67147.0,67146.0,0.52686365]
[1730020656505,0.0010911,67147.0,67146.0,0.57154095]
[1730020657575,0.0010911,67147.0,67146.0,0.66644095]
[1730020659184,0.0010911,67147.0,67146.0,0.58421392]
[1730020659415,0.0010911,67147.0,67146.0,0.66381392]
[1730020662449,0.0010911,67147.0,67146.0,0.61913662]
[1730020663148,0.0010911,67147.0,67146.0,0.66381392]
[1730020663627,0.0010911,67147.0,67146.0,0.61913662]
[1730020678337,0.0010911,67147.0,67146.0,0.44463662]
[1730020678979,0.0010911,67147.0,67146.0,0.43963662]
[1730020679179,0.0010911,67147.0,67146.0,0.52686365]
[1730020680354,0.0010911,67147.0,67146.0,0.36491266]
[1730020680627,0.01224554,67147.0,67146.0,0.36491266]
[1730020680836,0.01224554,67147.0,67146.0,0.27768563]
[1730020681040,0.01224554,67147.0,67146.0,0.36491266]
[1730020681681,0.01224759,67147.0,67146.0,0.36491266]
[1730020681885,0.01224759,67147.0,67146.0,0.36573366]
[1730020683389,0.01224777,67147.0,67146.0,0.36573366]
[1730020684861,0.0010911,67147.0,67146.0,0.36573366]
[1730020685069,0.01224911,67147.0,67146.0,0.36573366]
[1730020686157,0.0010911,67147.0,67146.0,0.36573366]
[1730020686361,0.01224829,67147.0,67146.0,0.36573366]
[1730020692376,0.01224829,67147.0,67146.0,0.27850663]
[1730020695704,0.0010911,67147.0,67146.0,0.27850663]
[1730020695940,0.01224431,67147.0,67146.0,0.27850663]
[1730020696145,0.0010911,67147.0,67146.0,0.27850663]
[1730020696385,0.01224431,67147.0,67146.0,0.27850663]
[1730020697738,0.0010911,67147.0,67146.0,0.27850663]
[1730020698003,0.01224512,67147.0,67146.0,0.27850663]
[1730020699661,0.01224657,67147.0,67146.0,0.27850663]
[1730020706842,0.0010911,67147.0,67146.0,0.27850663]
[1730020707044,0.01225448,67147.0,67146.0,0.27850663]
[1730020711070,0.01049362,67147.0,67146.0,0.27850663]
[1730020714101,0.01049362,67147.0,67146.0,0.26573366]
[1730020714382,0.02835642,67147.0,67146.0,0.26573366]
[1730020715877,0.03000042,67147.0,67146.0,0.26573366]
[1730020716885,0.04395697,67147.0,67146.0,0.17850663]
[1730020717092,0.22595697,67147.0,67146.0,0.17850663]
[1730020717297,0.25861919,67147.0,67146.0,0.17850663]
[1730020717710,0.24466264,67147.0,67146.0,0.17850663]
[1730020718167,0.22169304,67147.0,67146.0,0.17850663]
[1730020718768,0.2356374,67147.0,67146.0,0.17850663]
[1730020719847,0.22169304,67147.0,67146.0,0.17850663]
[1730020720244,0.23563499,67147.0,67146.0,0.17850663]
[1730020721313,0.22169304,67147.0,67146.0,0.17850663]
[1730020721519,0.21777986,67147.0,67146.0,0.17850663]
[1730020721727,0.23562124,67147.0,67146.0,0.17850663]
[1730020722893,0.221683,67147.0,67146.0,0.17850663]
[1730020723104,0.23283226,67147.0,67146.0,0.17850663]
[1730020724813,0.24676398,67147.0,67146.0,0.17850663]
[1730020728612,0.24675899,67147.0,67146.0,0.17850663]
[1730020728815,0.21776683,67147.0,67146.0,0.17850663]
[1730020729029,0.24673438,67147.0,67146.0,0.17850663]
[1730020732335,0.21776681,67147.0,67146.0,0.17850663]
[1730020732535,0.24673092,67147.0,67146.0,0.17850663]
[1730020734160,0.39565692,67147.0,67146.0,0.000821]
[1730020734358,0.24673092,67147.0,67146.0,0.000821]
[1730020734909,0.39565692,67147.0,67146.0,0.000821]
[1730020736390,0.44024095,67147.0,67146.0,0.000821]
[1730020736603,0.41551031,67147.0,67146.0,0.000821]
[1730020737019,0.48238636,67147.0,67146.0,0.000821]
[1730020737229,0.41551031,67147.0,67146.0,0.000821]
[1730020737447,0.56801412,67147.0,67146.0,0.000821]
[1730020738066,0.63489017,67147.0,67146.0,0.000821]
[1730020738310,0.56601412,67147.0,67146.0,0.000821]
[1730020738544,0.55316073,67147.0,67146.0,0.000821]
[1730020738786,0.56801201,67147.0,67146.0,0.000821]
[1730020739014,0.56601201,67147.0,67146.0,0.000821]
[1730020740321,0.5520853,67147.0,67146.0,0.000821]
[1730020740541,0.5540853,67147.0,67146.0,0.000821]
[1730020741172,0.55315676,67147.0,67146.0,0.000821]
[1730020741283,0.5392347,67147.0,67146.0,0.000821]
[1730020741486,0.55315888,67147.0,67146.0,0.000821]
[1730020741740,0.77556067,67147.0,67146.0,0.000821]
[1730020741938,0.99319502,67147.0,67146.0,0.000821]
[1730020742364,0.99829037,67147.0,67146.0,0.000821]
[1730020742908,0.85565596,67147.0,67146.0,0.000821]
[1730020743113,0.82669117,67147.0,67146.0,0.000821]
[1730020743324,0.8556554,67147.0,67146.0,0.000821]
[1730020744150,0.69125488,67147.0,67146.0,0.000821]
[1730020745516,0.69124689,67147.0,67146.0,0.000821]
[1730020748110,0.76108483,67147.0,67146.0,0.000821]
[1730020748360,0.79002783,67147.0,67146.0,0.000821]
[1730020751487,0.95436136,67147.0,67146.0,0.000821]
[1730020751894,0.92541836,67147.0,67146.0,0.000821]
[1730020752099,0.95435267,67147.0,67146.0,0.000821]
[1730020753383,0.95429878,67147.0,67146.0,0.000821]
[1730020753810,0.85549411,67147.0,67146.0,0.000821]
[1730020754202,0.98900391,67147.0,67146.0,0.000821]
[1730020754646,0.85549411,67147.0,67146.0,0.000821]
[1730020755664,0.85548708,67147.0,67146.0,0.000821]
[1730020759508,0.82655405,67147.0,67146.0,0.000821]
[1730020759713,0.85548509,67147.0,67146.0,0.000821]
[1730020760985,0.165931,67145.0,67144.0,0.00070323]
[1730020761206,1.0482047,67145.0,67144.0,0.00070323]
[1730020761429,1.06948799,67145.0,67144.0,0.00070323]
[1730020762250,0.93606496,67145.0,67144.0,0.00070323]
[1730020762465,0.15596,67132.0,67131.0,0.22240179]
[1730020762675,0.37156048,67132.0,67131.0,0.22240179]
[1730020762881,0.155962,67131.0,67130.0,0.000821]
[1730020763088,0.38640124,67131.0,67130.0,0.000821]
[1730020763292,0.36043899,67131.0,67130.0,0.000821]
[1730020763519,0.39656056,67131.0,67130.0,0.000821]
[1730020763731,0.39285087,67131.0,67130.0,0.000821]
[1730020764128,0.50383797,67131.0,67130.0,0.000821]
[1730020765428,0.39285087,67131.0,67130.0,0.000821]
[1730020765852,0.41585087,67131.0,67130.0,0.000821]
[1730020766068,0.85440971,67131.0,67130.0,0.000821]
[1730020766304,0.77291143,67131.0,67130.0,0.000821]
[1730020766954,0.77286675,67131.0,67130.0,0.000821]
[1730020767171,0.89849634,67131.0,67130.0,0.000821]
[1730020767403,0.9274376,67131.0,67130.0,0.000821]
[1730020767633,1.00958468,67131.0,67130.0,0.000821]
[1730020768064,1.038531,67131.0,67130.0,0.000821]
[1730020768509,0.92744266,67131.0,67130.0,0.000821]
[1730020769147,1.038531,67131.0,67130.0,0.000821]
[1730020769593,0.92744266,67131.0,67130.0,0.000821]
[1730020770632,1.01627995,67131.0,67130.0,0.000821]
[1730020771548,1.01626826,67131.0,67130.0,0.000821]
[1730020771782,1.01615623,67131.0,67130.0,0.000821]
[1730020774779,0.42384994,67131.0,67130.0,0.000821]
[1730020774993,0.40084994,67131.0,67130.0,0.000821]
[1730020775446,0.34965303,67131.0,67130.0,0.000821]
[1730020775652,0.37857996,67131.0,67130.0,0.000821]
[1730020779660,0.078953,67131.0,67130.0,0.077221]
[1730020779876,0.06411867,67131.0,67130.0,0.077221]
[1730020780733,0.21308067,67131.0,67130.0,0.077221]
[1730020780951,0.06911867,67131.0,67130.0,0.077221]
[1730020781167,0.06411867,67131.0,67130.0,0.077221]
[1730020781381,0.06411867,67131.0,67130.0,0.226185]
[1730020781827,0.04283863,67131.0,67130.0,0.320585]
[1730020782052,0.06106512,67131.0,67130.0,0.320585]
[1730020783718,0.06109104,67131.0,67130.0,0.171621]
[1730020783956,0.06109104,67131.0,67130.0,0.320585]
[1730020784202,0.04286455,67131.0,67130.0,0.320585]
[1730020784443,0.06109104,67131.0,67130.0,0.320585]
[1730020786381,0.06109104,67131.0,67130.0,0.40781203]
[1730020786911,0.04286455,67131.0,67130.0,0.40781203]
[1730020787608,0.02894749,67131.0,67130.0,0.40781203]
[1730020787822,0.04286447,67131.0,67130.0,0.40781203]
[1730020788283,0.06473627,67131.0,67130.0,0.40781203]
[1730020788755,0.04286447,67131.0,67130.0,0.40781203]
[1730020790435,0.02505063,67131.0,67130.0,0.40781203]
[1730020792833,0.02504564,67131.0,67130.0,0.40781203]